[Event "Early-Titled-Tuesday-Blitz-September-26-2023"]
[Site "Chess.com"]
[Date "2023.09.26"]
[Round "6"]
[White "lolo9292"]
[Black "Makswolf200817"]
[Result "0-1"]
[WhiteElo "2204"]
[BlackElo "2726"]
[TimeControl "180+1"]
[EndTime "9:08:26 PDT"]
[Termination "Makswolf200817 won by resignation"]

1. d4 {[%clk 0:03:00.9]} 1... Nf6 {[%clk 0:02:59.3]} 2. c4 {[%clk 0:02:58.6]}
2... e6 {[%clk 0:02:59.6]} 3. g4 {[%clk 0:02:58.3]} 3... Nxg4 {[%clk 0:02:55.5]}
4. e4 {[%clk 0:02:58]} 4... Nf6 {[%clk 0:02:52.8]} 5. Bg2 {[%clk 0:02:55.1]}
5... d6 {[%clk 0:02:46.5]} 6. Bg5 {[%clk 0:02:53.6]} 6... Be7 {[%clk 0:02:46.1]}
7. Nc3 {[%clk 0:02:50.6]} 7... h6 {[%clk 0:02:45.9]} 8. Be3 {[%clk 0:02:49.7]}
8... e5 {[%clk 0:02:43.4]} 9. d5 {[%clk 0:02:49.1]} 9... Bg4 {[%clk 0:02:42.2]}
10. f3 {[%clk 0:02:48.2]} 10... Bd7 {[%clk 0:02:32.5]} 11. Nge2 {[%clk 0:02:48]}
11... a6 {[%clk 0:02:32.4]} 12. Ng3 {[%clk 0:02:47.8]} 12... b5 {[%clk
0:02:32.2]} 13. b3 {[%clk 0:02:44]} 13... Nh7 {[%clk 0:02:24.4]} 14. Nh5 {[%clk
0:02:28.9]} 14... Kf8 {[%clk 0:02:23.5]} 15. f4 {[%clk 0:02:19.6]} 15... exf4
{[%clk 0:02:20.5]} 16. Nxf4 {[%clk 0:02:20.5]} 16... Bh4+ {[%clk 0:02:18.7]} 17.
Kf1 {[%clk 0:02:20.4]} 17... Qf6 {[%clk 0:02:14.6]} 18. Ne2 {[%clk 0:02:15.6]}
18... Bg4 {[%clk 0:02:07.3]} 19. h3 {[%clk 0:02:04.8]} 19... Bxe2+ {[%clk
0:02:04.5]} 20. Kxe2 {[%clk 0:02:05.7]} 20... Nd7 {[%clk 0:02:01.4]} 21. Rf1
{[%clk 0:02:05.1]} 21... Qb2+ {[%clk 0:01:48.2]} 22. Bd2 {[%clk 0:02:03.3]}
22... Bf6 {[%clk 0:01:42.3]} 23. Rb1 {[%clk 0:01:59.4]} 23... Qxa2 {[%clk
0:01:41.8]} 24. h4 {[%clk 0:01:58.2]} 24... Re8 {[%clk 0:01:39.9]} 25. Kd3
{[%clk 0:01:56.6]} 25... Nc5+ {[%clk 0:01:38.2]} 26. Ke3 {[%clk 0:01:55.7]}
26... bxc4 {[%clk 0:01:36.2]} 27. bxc4 {[%clk 0:01:41.5]} 27... Qa3+ {[%clk
0:01:36]} 28. Ke2 {[%clk 0:01:39.6]} 28... Nxe4 {[%clk 0:01:33.8]} 29. Bxe4
{[%clk 0:01:36]} 29... Rxe4+ {[%clk 0:01:34.7]} 30. Kf2 {[%clk 0:01:36.2]} 30...
Bxh4+ {[%clk 0:01:32.7]} 31. Kg2 {[%clk 0:01:36.5]} 31... Qg3+ {[%clk
0:01:31.5]} 32. Kh1 {[%clk 0:01:36.6]} 32... Ke7 {[%clk 0:01:23.8]} 33. Rb7
{[%clk 0:01:25.7]} 33... Rc8 {[%clk 0:01:13.8]} 34. Qh5 {[%clk 0:01:14.1]} 34...
Nf6 {[%clk 0:01:07.6]} 35. Qf5 {[%clk 0:01:09.4]} 35... Qg4 {[%clk 0:00:34.4]}
36. Qxg4 {[%clk 0:00:42.3]} 36... Nxg4 {[%clk 0:00:35.3]} 37. Nh5 {[%clk
0:00:42.8]} 37... Re2 {[%clk 0:00:30.8]} 38. Nxg7 {[%clk 0:00:38.8]} 38... Rh2+
{[%clk 0:00:27.6]} 39. Kg1 {[%clk 0:00:38.4]} 39... Bf2+ {[%clk 0:00:28.5]} 40.
Rxf2 {[%clk 0:00:33.7]} 40... Rxf2 {[%clk 0:00:29.4]} 41. Bxh6 {[%clk
0:00:29.9]} 41... Kd7 {[%clk 0:00:27.4]} 42. Nh5 {[%clk 0:00:27.5]} 42... Rg8
{[%clk 0:00:26.5]} 43. Be3 {[%clk 0:00:20.5]} 43... Rf5 {[%clk 0:00:24]} 44. Ng3
{[%clk 0:00:19.8]} 44... Nxe3 {[%clk 0:00:23.9]} 0-1

[Event "Early-Titled-Tuesday-Blitz-September-26-2023"]
[Site "Chess.com"]
[Date "2023.09.26"]
[Round "6"]
[White "Iball95"]
[Black "LoaySameer"]
[Result "1-0"]
[WhiteElo "2784"]
[BlackElo "2610"]
[TimeControl "180+1"]
[EndTime "9:08:30 PDT"]
[Termination "Iball95 won by resignation"]

1. e4 {[%clk 0:03:00]} 1... g6 {[%clk 0:02:59.6]} 2. d4 {[%clk 0:03:00.5]} 2...
Bg7 {[%clk 0:03:00]} 3. Nf3 {[%clk 0:03:01]} 3... d6 {[%clk 0:03:00.4]} 4. Nc3
{[%clk 0:03:01.4]} 4... Nf6 {[%clk 0:03:00.7]} 5. Be3 {[%clk 0:03:01.7]} 5...
O-O {[%clk 0:02:58.7]} 6. Qd2 {[%clk 0:03:00.8]} 6... d5 {[%clk 0:02:54.7]} 7.
e5 {[%clk 0:02:21.8]} 7... Ne4 {[%clk 0:02:54.8]} 8. Nxe4 {[%clk 0:02:22.2]}
8... dxe4 {[%clk 0:02:55.7]} 9. Ng5 {[%clk 0:02:23.1]} 9... c5 {[%clk 0:02:53]}
10. Nxe4 {[%clk 0:02:11.8]} 10... cxd4 {[%clk 0:02:51.1]} 11. Qxd4 {[%clk
0:02:12.7]} 11... Qc7 {[%clk 0:02:47.4]} 12. f4 {[%clk 0:01:59]} 12... Bf5
{[%clk 0:02:41.8]} 13. Bd3 {[%clk 0:01:57.5]} 13... Nc6 {[%clk 0:02:40.9]} 14.
Qc3 {[%clk 0:01:55.5]} 14... f6 {[%clk 0:02:35]} 15. Qc4+ {[%clk 0:01:36.5]}
15... Kh8 {[%clk 0:02:33.2]} 16. e6 {[%clk 0:01:36.4]} 16... Bxe4 {[%clk
0:02:23.2]} 17. Bxe4 {[%clk 0:01:37.3]} 17... f5 {[%clk 0:02:23.9]} 18. Bxc6
{[%clk 0:01:21.4]} 18... Qxc6 {[%clk 0:02:15.8]} 19. Qxc6 {[%clk 0:01:19.6]}
19... bxc6 {[%clk 0:02:16.7]} 20. O-O-O {[%clk 0:01:19.3]} 20... Rf6 {[%clk
0:02:15]} 21. Rhe1 {[%clk 0:01:14.6]} 21... Rxe6 {[%clk 0:02:14.2]} 22. Bc5
{[%clk 0:01:15.2]} 22... Rxe1 {[%clk 0:02:00.3]} 23. Rxe1 {[%clk 0:01:16]} 23...
e5 {[%clk 0:01:34.7]} 24. fxe5 {[%clk 0:01:16.9]} 24... Re8 {[%clk 0:01:34.8]}
25. Bxa7 {[%clk 0:01:09.1]} 25... Kg8 {[%clk 0:00:54.6]} 26. Bd4 {[%clk
0:01:05.5]} 26... c5 {[%clk 0:00:50.1]} 27. Bxc5 {[%clk 0:00:53.7]} 27... Bxe5
{[%clk 0:00:49.9]} 28. Kb1 {[%clk 0:00:37.8]} 28... Kf7 {[%clk 0:00:49.4]} 29.
a4 {[%clk 0:00:30.3]} 29... Kf6 {[%clk 0:00:46.1]} 30. c3 {[%clk 0:00:20.3]}
30... Rd8 {[%clk 0:00:37.6]} 31. Be7+ {[%clk 0:00:15.3]} 31... Kxe7 {[%clk
0:00:35.2]} 32. Rxe5+ {[%clk 0:00:16.2]} 32... Kf6 {[%clk 0:00:36.1]} 33. Re2
{[%clk 0:00:16.3]} 33... f4 {[%clk 0:00:35.7]} 34. Kc2 {[%clk 0:00:15.4]} 34...
g5 {[%clk 0:00:36.1]} 35. b4 {[%clk 0:00:16.2]} 35... g4 {[%clk 0:00:36.6]} 36.
a5 {[%clk 0:00:16.7]} 36... Kf5 {[%clk 0:00:33.6]} 37. Re7 {[%clk 0:00:16.8]}
37... Kf6 {[%clk 0:00:33.3]} 38. Re1 {[%clk 0:00:17.2]} 38... Kf5 {[%clk
0:00:33.7]} 39. a6 {[%clk 0:00:16.2]} 39... f3 {[%clk 0:00:34.2]} 40. gxf3
{[%clk 0:00:16.9]} 40... gxf3 {[%clk 0:00:34.4]} 41. b5 {[%clk 0:00:17.3]} 41...
Kg4 {[%clk 0:00:31.4]} 42. b6 {[%clk 0:00:16.5]} 42... Kh3 {[%clk 0:00:31.9]}
43. a7 {[%clk 0:00:14.7]} 43... f2 {[%clk 0:00:32.5]} 44. Rf1 {[%clk 0:00:15]}
44... Kg2 {[%clk 0:00:33]} 45. Rxf2+ {[%clk 0:00:15.3]} 45... Kxf2 {[%clk
0:00:33.9]} 46. b7 {[%clk 0:00:16.2]} 1-0

[Event "Early-Titled-Tuesday-Blitz-September-26-2023"]
[Site "Chess.com"]
[Date "2023.09.26"]
[Round "6"]
[White "ActorXu"]
[Black "DanielNaroditsky"]
[Result "0-1"]
[WhiteElo "2716"]
[BlackElo "3145"]
[TimeControl "180+1"]
[EndTime "9:08:34 PDT"]
[Termination "DanielNaroditsky won by resignation"]

1. e4 {[%clk 0:02:54.5]} 1... c5 {[%clk 0:02:58.5]} 2. Nf3 {[%clk 0:02:54.4]}
2... d6 {[%clk 0:02:59.3]} 3. d4 {[%clk 0:02:54.7]} 3... cxd4 {[%clk 0:03:00.2]}
4. Nxd4 {[%clk 0:02:55.3]} 4... Nf6 {[%clk 0:03:00.8]} 5. Nc3 {[%clk 0:02:55.8]}
5... a6 {[%clk 0:03:01.6]} 6. Be3 {[%clk 0:02:55.9]} 6... e5 {[%clk 0:03:01.7]}
7. Nb3 {[%clk 0:02:55.6]} 7... Be6 {[%clk 0:03:01.5]} 8. f3 {[%clk 0:02:55.6]}
8... Be7 {[%clk 0:03:01.9]} 9. Qd2 {[%clk 0:02:53.4]} 9... O-O {[%clk
0:03:02.6]} 10. O-O-O {[%clk 0:02:51.8]} 10... a5 {[%clk 0:03:03.2]} 11. a4
{[%clk 0:02:50.7]} 11... Nc6 {[%clk 0:03:00.6]} 12. Bb5 {[%clk 0:02:07]} 12...
Nb4 {[%clk 0:03:00]} 13. Bg5 {[%clk 0:01:48.4]} 13... d5 {[%clk 0:02:22.1]} 14.
exd5 {[%clk 0:01:37.5]} 14... Nfxd5 {[%clk 0:02:22.5]} 15. Bxe7 {[%clk
0:01:36.9]} 15... Qxe7 {[%clk 0:02:23.4]} 16. Nxd5 {[%clk 0:01:28.8]} 16... Bxd5
{[%clk 0:02:24.3]} 17. Kb1 {[%clk 0:01:08.4]} 17... Rac8 {[%clk 0:02:18.9]} 18.
Rc1 {[%clk 0:00:50]} 18... Rfd8 {[%clk 0:02:18.8]} 19. Qe3 {[%clk 0:00:44.6]}
19... Qc7 {[%clk 0:01:58.7]} 20. c3 {[%clk 0:00:21.7]} 20... Bxb3 {[%clk
0:01:42]} 21. cxb4 {[%clk 0:00:21.8]} 21... Bc2+ {[%clk 0:01:42.8]} 22. Ka1
{[%clk 0:00:22.2]} 22... axb4 {[%clk 0:01:43.2]} 23. Rhe1 {[%clk 0:00:20.5]}
23... b3 {[%clk 0:01:08]} 24. Qxe5 {[%clk 0:00:17.9]} 24... Qa5 {[%clk
0:01:08.7]} 25. Re3 {[%clk 0:00:08.9]} 25... Ra8 {[%clk 0:01:02.3]} 26. Qc5
{[%clk 0:00:07.6]} 26... Rd5 {[%clk 0:00:38.8]} 27. Re8+ {[%clk 0:00:04.1]}
27... Rxe8 {[%clk 0:00:38.2]} 28. Qxd5 {[%clk 0:00:04.7]} 28... Ra8 {[%clk
0:00:36.5]} 29. Qc5 {[%clk 0:00:03.9]} 29... Qd2 {[%clk 0:00:31.6]} 30. Rg1
{[%clk 0:00:03.1]} 30... g6 {[%clk 0:00:29.1]} 31. h4 {[%clk 0:00:02.1]} 31...
Rd8 {[%clk 0:00:09.4]} 32. Qg5 {[%clk 0:00:02.6]} 32... Qd4 {[%clk 0:00:06.8]}
33. Re1 {[%clk 0:00:02.1]} 33... Ra8 {[%clk 0:00:07]} 34. Qc1 {[%clk 0:00:01.7]}
34... Qxa4+ {[%clk 0:00:05.7]} 0-1

[Event "Early-Titled-Tuesday-Blitz-September-26-2023"]
[Site "Chess.com"]
[Date "2023.09.26"]
[Round "6"]
[White "melissa_guez"]
[Black "Francisco_Ferrari"]
[Result "0-1"]
[WhiteElo "2108"]
[BlackElo "2401"]
[TimeControl "180+1"]
[EndTime "9:08:34 PDT"]
[Termination "Francisco_Ferrari won by resignation"]

1. e4 {[%clk 0:03:00.9]} 1... g6 {[%clk 0:02:58.1]} 2. d4 {[%clk 0:03:00.3]}
2... Bg7 {[%clk 0:02:58.7]} 3. Be3 {[%clk 0:02:59.9]} 3... d6 {[%clk 0:02:59.1]}
4. Nf3 {[%clk 0:02:55.4]} 4... Nd7 {[%clk 0:02:57.1]} 5. Qd2 {[%clk 0:02:54.3]}
5... Ngf6 {[%clk 0:02:56.6]} 6. Nc3 {[%clk 0:02:52.4]} 6... c6 {[%clk
0:02:56.8]} 7. Bh6 {[%clk 0:02:25.3]} 7... O-O {[%clk 0:02:43.4]} 8. h4 {[%clk
0:02:18.4]} 8... e5 {[%clk 0:02:40.5]} 9. h5 {[%clk 0:02:02]} 9... exd4 {[%clk
0:02:37.8]} 10. Nxd4 {[%clk 0:01:58.5]} 10... Re8 {[%clk 0:02:23.3]} 11. O-O-O
{[%clk 0:01:49.3]} 11... Qa5 {[%clk 0:02:05.5]} 12. hxg6 {[%clk 0:01:25.4]}
12... fxg6 {[%clk 0:02:06.4]} 13. Bc4+ {[%clk 0:00:51.8]} 13... d5 {[%clk
0:02:05.6]} 14. exd5 {[%clk 0:00:49]} 14... cxd5 {[%clk 0:02:06.5]} 15. Bxg7
{[%clk 0:00:37]} 15... Kxg7 {[%clk 0:01:56.3]} 16. Qh6+ {[%clk 0:00:25.7]} 16...
Kf7 {[%clk 0:01:42.2]} 17. Nb3 {[%clk 0:00:15.7]} 17... Qc7 {[%clk 0:01:11.7]}
18. Bxd5+ {[%clk 0:00:11.9]} 18... Nxd5 {[%clk 0:01:06.7]} 19. Nxd5 {[%clk
0:00:11.5]} 19... Qe5 {[%clk 0:01:02.3]} 20. Qxh7+ {[%clk 0:00:11.6]} 20... Qg7
{[%clk 0:01:02.2]} 21. Qh4 {[%clk 0:00:10.1]} 21... Ne5 {[%clk 0:00:43.9]} 22.
Qf4+ {[%clk 0:00:10]} 22... Bf5 {[%clk 0:00:41.7]} 23. Kb1 {[%clk 0:00:08.6]}
23... Rac8 {[%clk 0:00:40.8]} 24. Ne3 {[%clk 0:00:07.9]} 24... Qf6 {[%clk
0:00:34]} 25. Nxf5 {[%clk 0:00:07.8]} 25... Qxf5 {[%clk 0:00:31.3]} 26. Qxf5+
{[%clk 0:00:07.9]} 26... gxf5 {[%clk 0:00:32.2]} 27. f4 {[%clk 0:00:07.9]} 27...
Ng4 {[%clk 0:00:24.9]} 28. a3 {[%clk 0:00:07.8]} 28... Nf2 {[%clk 0:00:22.5]}
29. Rh7+ {[%clk 0:00:07.7]} 29... Kg6 {[%clk 0:00:22.6]} 30. Rdd7 {[%clk
0:00:07.9]} 30... Rg8 {[%clk 0:00:21.8]} 31. Ka2 {[%clk 0:00:07.3]} 31... Rxc2
{[%clk 0:00:20.5]} 32. Nd4 {[%clk 0:00:07.5]} 32... Rd2 {[%clk 0:00:17.8]} 33.
Rhe7 {[%clk 0:00:06.2]} 33... Nd3 {[%clk 0:00:15.7]} 34. Rd6+ {[%clk 0:00:06.3]}
34... Kh5 {[%clk 0:00:15.3]} 35. Nxf5 {[%clk 0:00:06.6]} 35... Rxb2+ {[%clk
0:00:14.5]} 36. Ka1 {[%clk 0:00:06]} 36... Rgxg2 {[%clk 0:00:14.8]} 37. Rh6+
{[%clk 0:00:04.7]} 37... Kg4 {[%clk 0:00:15.4]} 38. Rg7+ {[%clk 0:00:04.6]}
38... Kxf5 {[%clk 0:00:15]} 39. Rxg2 {[%clk 0:00:04.5]} 39... Rxg2 {[%clk
0:00:15.6]} 40. Rh5+ {[%clk 0:00:04.9]} 40... Kxf4 {[%clk 0:00:15.6]} 0-1

[Event "Early-Titled-Tuesday-Blitz-September-26-2023"]
[Site "Chess.com"]
[Date "2023.09.26"]
[Round "6"]
[White "FGHSMN"]
[Black "Boundless_Strike"]
[Result "1-0"]
[WhiteElo "2864"]
[BlackElo "2596"]
[TimeControl "180+1"]
[EndTime "9:08:37 PDT"]
[Termination "FGHSMN won by resignation"]

1. e4 {[%clk 0:03:00.9]} 1... d6 {[%clk 0:03:00.1]} 2. d4 {[%clk 0:03:00.4]}
2... e5 {[%clk 0:03:00.4]} 3. Nc3 {[%clk 0:03:01.3]} 3... Nd7 {[%clk 0:02:56.3]}
4. Nf3 {[%clk 0:03:00.1]} 4... Ngf6 {[%clk 0:02:55.8]} 5. Bc4 {[%clk 0:02:58.9]}
5... h6 {[%clk 0:02:56]} 6. dxe5 {[%clk 0:02:52]} 6... dxe5 {[%clk 0:02:56]} 7.
O-O {[%clk 0:02:34]} 7... c6 {[%clk 0:02:54.5]} 8. Bxf7+ {[%clk 0:02:29.1]} 8...
Kxf7 {[%clk 0:02:44.6]} 9. Nxe5+ {[%clk 0:02:30]} 9... Kg8 {[%clk 0:02:12.2]}
10. Ng6 {[%clk 0:02:29.9]} 10... Qe8 {[%clk 0:02:12.7]} 11. Nxh8 {[%clk
0:02:29.2]} 11... Kxh8 {[%clk 0:02:13.2]} 12. Re1 {[%clk 0:02:21]} 12... Ne5
{[%clk 0:02:08.1]} 13. Bf4 {[%clk 0:02:14.2]} 13... Bc5 {[%clk 0:01:46.7]} 14.
Na4 {[%clk 0:02:07]} 14... Bg4 {[%clk 0:01:39.8]} 15. Qd2 {[%clk 0:02:00.2]}
15... Rd8 {[%clk 0:01:33]} 16. Qc3 {[%clk 0:01:53.9]} 16... Bd4 {[%clk 0:01:26]}
17. Qb3 {[%clk 0:01:53.7]} 17... b5 {[%clk 0:01:21.3]} 18. Nc3 {[%clk
0:01:53.7]} 18... Qg6 {[%clk 0:00:34.5]} 19. Bg3 {[%clk 0:01:45.5]} 19... h5
{[%clk 0:00:33.7]} 20. Ne2 {[%clk 0:01:39.5]} 20... h4 {[%clk 0:00:20.3]} 21.
Nxd4 {[%clk 0:01:35.5]} 21... hxg3 {[%clk 0:00:19.9]} 22. Qxg3 {[%clk
0:01:36.4]} 22... Rxd4 {[%clk 0:00:14.5]} 23. Qxe5 {[%clk 0:01:35.9]} 23... Rd2
{[%clk 0:00:14.8]} 24. Qc3 {[%clk 0:01:23.9]} 24... Qg5 {[%clk 0:00:11.8]} 25.
h4 {[%clk 0:01:14.6]} 25... Qf4 {[%clk 0:00:10.5]} 26. Qe3 {[%clk 0:01:08.7]}
26... Qxe3 {[%clk 0:00:10.6]} 27. Rxe3 {[%clk 0:01:09.6]} 27... Rxc2 {[%clk
0:00:11.2]} 28. b3 {[%clk 0:01:06.1]} 28... c5 {[%clk 0:00:08.1]} 29. f3 {[%clk
0:01:05.9]} 29... Be6 {[%clk 0:00:08.4]} 30. Rd3 {[%clk 0:01:00]} 30... c4
{[%clk 0:00:08.3]} 31. bxc4 {[%clk 0:00:59.1]} 31... bxc4 {[%clk 0:00:08.5]} 32.
Rd6 {[%clk 0:00:58.2]} 32... Bf7 {[%clk 0:00:08.8]} 33. Ra6 {[%clk 0:00:54]}
33... Nh5 {[%clk 0:00:08.4]} 34. Rxa7 {[%clk 0:00:53.9]} 34... Be6 {[%clk
0:00:08.7]} 35. Rf1 {[%clk 0:00:52.5]} 35... Nf4 {[%clk 0:00:08.4]} 36. Rf2
{[%clk 0:00:47.4]} 36... Ne2+ {[%clk 0:00:05.9]} 37. Kh2 {[%clk 0:00:45.6]}
37... Rd2 {[%clk 0:00:06.3]} 38. Rc7 {[%clk 0:00:41.5]} 38... Rxa2 {[%clk
0:00:05.8]} 39. f4 {[%clk 0:00:40.8]} 39... Bg4 {[%clk 0:00:04.2]} 40. Rxc4
{[%clk 0:00:39.6]} 40... Rd2 {[%clk 0:00:01.8]} 41. f5 {[%clk 0:00:34.9]} 41...
Kh7 {[%clk 0:00:02.4]} 42. e5 {[%clk 0:00:32.7]} 42... Rd4 {[%clk 0:00:03.1]}
43. Rxd4 {[%clk 0:00:31.5]} 43... Nxd4 {[%clk 0:00:04]} 44. Rf4 {[%clk
0:00:32.1]} 1-0

[Event "Early-Titled-Tuesday-Blitz-September-26-2023"]
[Site "Chess.com"]
[Date "2023.09.26"]
[Round "6"]
[White "LeoWin2012"]
[Black "Artemiki"]
[Result "0-1"]
[WhiteElo "2318"]
[BlackElo "2219"]
[TimeControl "180+1"]
[EndTime "9:08:37 PDT"]
[Termination "Artemiki won by checkmate"]

1. e4 {[%clk 0:03:00.9]} 1... e5 {[%clk 0:02:55.6]} 2. Nf3 {[%clk 0:02:59.4]}
2... Nc6 {[%clk 0:02:56.2]} 3. c3 {[%clk 0:02:58.1]} 3... Nf6 {[%clk 0:02:55.6]}
4. Bc4 {[%clk 0:02:56.9]} 4... Nxe4 {[%clk 0:02:54.7]} 5. O-O {[%clk 0:02:53.3]}
5... d5 {[%clk 0:02:54.4]} 6. Bb3 {[%clk 0:02:52.7]} 6... Bc5 {[%clk 0:02:50.8]}
7. d4 {[%clk 0:02:51.2]} 7... exd4 {[%clk 0:02:50.5]} 8. cxd4 {[%clk 0:02:51.6]}
8... Bb6 {[%clk 0:02:50.2]} 9. Nc3 {[%clk 0:02:19.8]} 9... Nxc3 {[%clk
0:02:41.3]} 10. bxc3 {[%clk 0:02:20.7]} 10... O-O {[%clk 0:02:41.9]} 11. Re1
{[%clk 0:02:13]} 11... Bf5 {[%clk 0:02:38.9]} 12. Ba3 {[%clk 0:02:09.4]} 12...
Re8 {[%clk 0:02:22.5]} 13. Rxe8+ {[%clk 0:02:05.2]} 13... Qxe8 {[%clk
0:02:23.4]} 14. Bxd5 {[%clk 0:02:03.4]} 14... Rd8 {[%clk 0:02:21.2]} 15. Bb3
{[%clk 0:01:50.1]} 15... Bg4 {[%clk 0:01:58.2]} 16. h3 {[%clk 0:01:38.8]} 16...
Bh5 {[%clk 0:01:55.1]} 17. Qd3 {[%clk 0:01:29]} 17... Bg6 {[%clk 0:01:53]} 18.
Qc4 {[%clk 0:01:26.1]} 18... Na5 {[%clk 0:01:49.5]} 19. Qa4 {[%clk 0:01:19.3]}
19... Qxa4 {[%clk 0:01:18.3]} 20. Bxa4 {[%clk 0:01:20.2]} 20... Nc4 {[%clk
0:01:18.7]} 21. Be7 {[%clk 0:01:15.9]} 21... Ra8 {[%clk 0:01:15.4]} 22. Re1
{[%clk 0:01:11.4]} 22... f6 {[%clk 0:01:02.4]} 23. Bb3 {[%clk 0:00:50.8]} 23...
Bf7 {[%clk 0:01:01.4]} 24. d5 {[%clk 0:00:36.6]} 24... Bxd5 {[%clk 0:00:51.4]}
25. Nd2 {[%clk 0:00:35.1]} 25... Nxd2 {[%clk 0:00:36.5]} 26. Bxd5+ {[%clk
0:00:34.3]} 26... Kh8 {[%clk 0:00:35.9]} 27. Bb4 {[%clk 0:00:20]} 27... c6
{[%clk 0:00:24]} 28. Bf7 {[%clk 0:00:19.4]} 28... a5 {[%clk 0:00:22.9]} 29. Ba3
{[%clk 0:00:18.6]} 29... Rd8 {[%clk 0:00:22]} 30. Bc1 {[%clk 0:00:18.1]} 30...
g5 {[%clk 0:00:18.6]} 31. Re7 {[%clk 0:00:16.2]} 31... Ne4 {[%clk 0:00:14.2]}
32. Rxe4 {[%clk 0:00:07.5]} 32... Rd1+ {[%clk 0:00:14.7]} 33. Kh2 {[%clk
0:00:08]} 33... Rxc1 {[%clk 0:00:15.4]} 34. Re7 {[%clk 0:00:08.3]} 34... Bxf2
{[%clk 0:00:11.7]} 35. Rxb7 {[%clk 0:00:08.2]} 35... Rxc3 {[%clk 0:00:12.5]} 36.
Rc7 {[%clk 0:00:06.8]} 36... Bg3+ {[%clk 0:00:13]} 37. Kg1 {[%clk 0:00:06.3]}
37... Rc1# {[%clk 0:00:13.9]} 0-1

[Event "Early-Titled-Tuesday-Blitz-September-26-2023"]
[Site "Chess.com"]
[Date "2023.09.26"]
[Round "6"]
[White "sergoy"]
[Black "djokovic74"]
[Result "1-0"]
[WhiteElo "2920"]
[BlackElo "2695"]
[TimeControl "180+1"]
[EndTime "9:08:38 PDT"]
[Termination "sergoy won by resignation"]

1. d4 {[%clk 0:02:43.4]} 1... e6 {[%clk 0:03:00.3]} 2. c4 {[%clk 0:02:43.5]}
2... Nf6 {[%clk 0:03:00.9]} 3. Nf3 {[%clk 0:02:44.1]} 3... Bb4+ {[%clk
0:02:59.9]} 4. Nbd2 {[%clk 0:02:44.3]} 4... d5 {[%clk 0:02:59.8]} 5. Qa4+ {[%clk
0:02:43.8]} 5... Nc6 {[%clk 0:03:00.2]} 6. e3 {[%clk 0:02:44.5]} 6... a5 {[%clk
0:02:59.6]} 7. a3 {[%clk 0:02:44.6]} 7... Be7 {[%clk 0:02:59.8]} 8. b4 {[%clk
0:02:41.2]} 8... dxc4 {[%clk 0:02:58]} 9. b5 {[%clk 0:02:35.5]} 9... Nb8 {[%clk
0:02:48.8]} 10. Nxc4 {[%clk 0:02:34.9]} 10... O-O {[%clk 0:02:48.7]} 11. Be2
{[%clk 0:02:33]} 11... c6 {[%clk 0:02:48.8]} 12. O-O {[%clk 0:02:21.6]} 12...
Bd7 {[%clk 0:02:35]} 13. Nce5 {[%clk 0:02:11.9]} 13... Nd5 {[%clk 0:02:24.3]}
14. Bd2 {[%clk 0:01:59.7]} 14... Be8 {[%clk 0:02:12.2]} 15. Rfb1 {[%clk
0:01:46.9]} 15... f6 {[%clk 0:02:11.1]} 16. Nd3 {[%clk 0:01:36]} 16... cxb5
{[%clk 0:02:08.1]} 17. Qb3 {[%clk 0:01:36.2]} 17... Bd7 {[%clk 0:01:41.3]} 18.
e4 {[%clk 0:01:25.8]} 18... Nc7 {[%clk 0:01:29.1]} 19. Nf4 {[%clk 0:01:26.2]}
19... a4 {[%clk 0:01:18]} 20. Qa2 {[%clk 0:01:22.6]} 20... g5 {[%clk 0:01:03.7]}
21. Nd3 {[%clk 0:01:19.7]} 21... Bc6 {[%clk 0:01:03.5]} 22. d5 {[%clk
0:01:15.7]} 22... exd5 {[%clk 0:01:00.6]} 23. Nd4 {[%clk 0:01:16]} 23... Kh8
{[%clk 0:00:50.8]} 24. e5 {[%clk 0:01:13.9]} 24... fxe5 {[%clk 0:00:44.7]} 25.
Nxe5 {[%clk 0:01:14.8]} 25... Bf6 {[%clk 0:00:44.9]} 26. Ndf3 {[%clk 0:00:42.7]}
26... Nd7 {[%clk 0:00:38.1]} 27. Ng4 {[%clk 0:00:37.6]} 27... Bxa1 {[%clk
0:00:15.5]} 28. Qxa1+ {[%clk 0:00:38.5]} 28... Nf6 {[%clk 0:00:11.4]} 29. Bxg5
{[%clk 0:00:35.6]} 29... Ne8 {[%clk 0:00:09.2]} 30. Nd4 {[%clk 0:00:33.8]} 30...
Qd7 {[%clk 0:00:08.8]} 31. Ne5 {[%clk 0:00:27.7]} 31... Qg7 {[%clk 0:00:07.7]}
32. Ne6 {[%clk 0:00:27]} 32... Qg8 {[%clk 0:00:04.8]} 33. Nxf8 {[%clk
0:00:24.1]} 33... Qxg5 {[%clk 0:00:05]} 34. Nf7+ {[%clk 0:00:24.1]} 34... Kg7
{[%clk 0:00:04.9]} 35. Nxg5 {[%clk 0:00:25]} 35... Kxf8 {[%clk 0:00:05.7]} 36.
Bxb5 {[%clk 0:00:21.8]} 36... h6 {[%clk 0:00:04.9]} 37. Ne6+ {[%clk 0:00:21.8]}
37... Kf7 {[%clk 0:00:04.9]} 38. Bxc6 {[%clk 0:00:22.4]} 38... bxc6 {[%clk
0:00:05.4]} 39. Qe5 {[%clk 0:00:21.9]} 39... Rb8 {[%clk 0:00:03.6]} 40. Rxb8
{[%clk 0:00:20]} 1-0